[Event "GER-chW Blitz 2019"]
[Site "Magdeburg"]
[Date "2019.05.25"]
[Round "20.11"]
[White "Fuchs, Judith"]
[Black "Kushka, Alena"]
[Result "1-0"]
[ECO "A45"]
[WhiteElo "2218"]
[BlackElo "2148"]
[Annotator "NA"]
[PlyCount "95"]
[EventDate "2019.05.25"]
[EventType "tourn"]
[EventCountry "GER"]
[SourceTitle "playchess.com"]
[Source "ChessBase"]
[SourceQuality "1"]
[TimeControl "180+2"]

1. d4 {[%emt 0:00:00]} Nf6 {[%emt 0:00:00]} 2. Bf4 {[%emt 0:00:00]} c5 {[%emt 0:00:00]} 3. d5 {[%emt 0:00:00]} g6 {[%emt 0:00:03]} 4. Nc3 {[%emt 0:00:04]} d6 {[%emt 0:00:02]} 5. e4 {[%emt 0:00:03]} Bg7 {[%emt 0:00:01]} 6. Bb5+ {[%emt 0:00:01]} Bd7 {[%emt 0:00:03]} 7. a4 {[%emt 0:00:01]} a6 {[%emt 0:00:02]} 8. Be2 {[%emt 0:00:06]} O-O {[%emt 0:00:02]} 9. Nf3 {[%emt 0:00:02]} b6 {[%emt 0:00:10]} 10. O-O {[%emt 0:00:03]} Ra7 {[%emt 0:00:03]} 11. Re1 {[%emt 0:00:11]} Rb7 {[%emt 0:00:10]} 12. Qd2 {[%emt 0:00:43]} Re8 {[%emt 0:00:11]} 13. Bh6 {[%emt 0:00:05]} Bh8 {[%emt 0:00:04]} 14. h3 {[%emt 0:00:10]} b5 {[%emt 0:00:16]} 15. axb5 {[%emt 0:00:03]} axb5 {[%emt 0:00:01]} 16. Ng5 {[%emt 0:00:16]} b4 {[%emt 0:00:13]} 17. Nd1 {[%emt 0:00:02]} Bb5 {[%emt 0:00:08]} 18. Ne3 {[%emt 0:00:03]} Bxe2 {[%emt 0:00:10]} 19. Qxe2 {[%emt 0:00:02]} e5 {[%emt 0:00:17]} 20. Nc4 {[%emt 0:00:30]} Nh5 {[%emt 0:00:20]} 21. g3 {[%emt 0:00:20]} Bf6 {[%emt 0:00:17]} 22. Nf3 {[%emt 0:00:02]} Bg7 {[%emt 0:00:04]} 23. Bg5 {[%emt 0:00:02]} f6 {[%emt 0:00:05]} 24. Bd2 {[%emt 0:00:12]} Qc7 {[%emt 0:00:13]} 25. Ra8 {[%emt 0:00:14]} Ra7 {[%emt 0:00:09]} 26. Rxa7 {[%emt 0:00:02]} Qxa7 {[%emt 0:00:01]} 27. Nxd6 {[%emt 0:00:02]} Rd8 {[%emt 0:00:05]} 28. Nc4 {[%emt 0:00:04]} Bf8 {[%emt 0:00:03]} 29. Nh2 {[%emt 0:00:07]} Ng7 {[%emt 0:00:06]} 30. Ng4 {[%emt 0:00:01]} Ne8 {[%emt 0:00:04]} 31. Qe3 {[%emt 0:00:04]} Qc7 {[%emt 0:00:16]} 32. Ra1 {[%emt 0:00:04]} Nd7 {[%emt 0:00:05]} 33. c3 {[%emt 0:00:05]} bxc3 {[%emt 0:00:06]} 34. Bxc3 {[%emt 0:00:02]} Nb6 {[%emt 0:00:01]} 35. Ba5 {[%emt 0:00:08]} Nxc4 {[%emt 0:00:04]} 36. Bxc7 {[%emt 0:00:07]} Nxe3 {[%emt 0:00:01]} 37. Bxd8 {[%emt 0:00:01]} Nxg4 {[%emt 0:00:04]} 38. hxg4 {[%emt 0:00:01]} Nd6 {[%emt 0:00:02]} 39. f3 {[%emt 0:00:04]} Nc4 {[%emt 0:00:04]} 40. Bxf6 {[%emt 0:00:07]} Bd6 {[%emt 0:00:05]} 41. Ra8+ {[%emt 0:00:01]} Kf7 {[%emt 0:00:01]} 42. Bg5 {[%emt 0:00:00]} Nxb2 {[%emt 0:00:02]} 43. Ra7+ {[%emt 0:00:01]} Ke8 {[%emt 0:00:01]} 44. Rxh7 {[%emt 0:00:01]} c4 {[%emt 0:00:01]} 45. Kf2 {[%emt 0:00:01]} c3 {[%emt 0:00:01]} 46. Ke2 {[%emt 0:00:01]} c2 {[%emt 0:00:00]} 47. Kd2 {[%emt 0:00:01]} Nc4+ {[%emt 0:00:02]} 48. Kxc2 {[%emt 0:00:01]} 1-0

[Event "GER-chW Blitz 2019"]
[Site "Magdeburg"]
[Date "2019.05.25"]
[Round "20.12"]
[White "Lubbe, Melanie"]
[Black "Ries, Jutta"]
[Result "1-0"]
[ECO "A45"]
[WhiteElo "2278"]
[BlackElo "2017"]
[Annotator "NA"]
[PlyCount "109"]
[EventDate "2019.05.25"]
[EventType "tourn"]
[EventCountry "GER"]
[SourceTitle "playchess.com"]
[Source "ChessBase"]
[SourceQuality "1"]
[TimeControl "180+2"]

1. d4 {[%emt 0:00:00]} Nf6 {[%emt 0:00:00]} 2. Nc3 {[%emt 0:00:00]} c6 {[%emt 0:00:08]} 3. e4 {[%emt 0:00:02]} d5 {[%emt 0:00:03]} 4. e5 {[%emt 0:00:06]} Nfd7 {[%emt 0:00:01]} 5. f4 {[%emt 0:00:04]} e6 {[%emt 0:00:04]} 6. Nf3 {[%emt 0:00:01]} c5 {[%emt 0:00:01]} 7. Be3 {[%emt 0:00:01]} Nc6 {[%emt 0:00:04]} 8. Qd2 {[%emt 0:00:01]} a6 {[%emt 0:00:12]} 9. dxc5 {[%emt 0:00:11]} Bxc5 {[%emt 0:00:04]} 10. Bxc5 {[%emt 0:00:07]} Nxc5 {[%emt 0:00:02]} 11. O-O-O {[%emt 0:00:28]} Qa5 {[%emt 0:00:31]} 12. a3 {[%emt 0:00:33]} b5 {[%emt 0:00:18]} 13. Nd4 {[%emt 0:00:12]} Bd7 {[%emt 0:00:36]} 14. Nxc6 {[%emt 0:00:03]} Bxc6 {[%emt 0:00:00]} 15. Qd4 {[%emt 0:00:01]} Nd7 {[%emt 0:00:13]} 16. f5 {[%emt 0:00:13]} Qb6 {[%emt 0:00:03]} 17. Qf4 {[%emt 0:00:10]} Nf8 {[%emt 0:00:18]} 18. Bd3 {[%emt 0:00:06]} a5 {[%emt 0:00:08]} 19. Rhf1 {[%emt 0:00:05]} O-O-O {[%emt 0:00:19]} 20. Qf2 {[%emt 0:00:18]} Qb7 {[%emt 0:00:10]} 21. fxe6 {[%emt 0:00:06]} fxe6 {[%emt 0:00:02]} 22. Ne2 {[%emt 0:00:12]} Nd7 {[%emt 0:00:03]} 23. Qe3 {[%emt 0:00:07]} Rhf8 {[%emt 0:00:09]} 24. Nd4 {[%emt 0:00:02]} Nc5 {[%emt 0:00:13]} 25. Kb1 {[%emt 0:00:04]} Nxd3 {[%emt 0:00:02]} 26. cxd3 {[%emt 0:00:02]} Bd7 {[%emt 0:00:01]} 27. Rc1+ {[%emt 0:00:04]} Kb8 {[%emt 0:00:00]} 28. Rxf8 {[%emt 0:00:03]} Rxf8 {[%emt 0:00:01]} 29. Qg3 {[%emt 0:00:06]} Bc8 {[%emt 0:00:01]} 30. Nb3 {[%emt 0:00:08]} a4 {[%emt 0:00:03]} 31. Nc5 {[%emt 0:00:01]} Qb6 {[%emt 0:00:02]} 32. Qe3 {[%emt 0:00:02]} Ka7 {[%emt 0:00:02]} 33. Qd4 {[%emt 0:00:04]} Rf7 {[%emt 0:00:03]} 34. Qb4 {[%emt 0:00:04]} Rc7 {[%emt 0:00:02]} 35. d4 {[%emt 0:00:01]} Kb8 {[%emt 0:00:03]} 36. Rf1 {[%emt 0:00:01]} g5 {[%emt 0:00:03]} 37. Rf8 {[%emt 0:00:03]} Ka7 {[%emt 0:00:03]} 38. Qd2 {[%emt 0:00:05]} Rxc5 {[%emt 0:00:03]} 39. dxc5 {[%emt 0:00:02]} Qxc5 {[%emt 0:00:00]} 40. Qf2 {[%emt 0:00:07]} Qxf2 {[%emt 0:00:03]} 41. Rxf2 {[%emt 0:00:01]} Kb6 {[%emt 0:00:00]} 42. Rf7 {[%emt 0:00:01]} Kc6 {[%emt 0:00:02]} 43. Rxh7 {[%emt 0:00:02]} d4 {[%emt 0:00:01]} 44. Kc2 {[%emt 0:00:01]} Kd5 {[%emt 0:00:00]} 45. Kd3 {[%emt 0:00:01]} Kxe5 {[%emt 0:00:03]} 46. Rc7 {[%emt 0:00:02]} Ba6 {[%emt 0:00:01]} 47. Rc5+ {[%emt 0:00:03]} Kd6 {[%emt 0:00:01]} 48. Kxd4 {[%emt 0:00:02]} g4 {[%emt 0:00:04]} 49. Rg5 {[%emt 0:00:01]} Bb7 {[%emt 0:00:02]} 50. Rxg4 {[%emt 0:00:01]} Bd5 {[%emt 0:00:02]} 51. Rg6 {[%emt 0:00:03]} Ke7 {[%emt 0:00:01]} 52. h4 {[%emt 0:00:01]} Kf7 {[%emt 0:00:00]} 53. Rg5 {[%emt 0:00:02]} Kf6 {[%emt 0:00:01]} 54. Rxd5 {[%emt 0:00:03]} exd5 {[%emt 0:00:01]} 55. Kxd5 {[%emt 0:00:01]} 1-0

[Event "GER-chW Blitz 2019"]
[Site "Magdeburg"]
[Date "2019.05.25"]
[Round "21.1"]
[White "Ries, Jutta"]
[Black "Roesler, Hannah Clara Hed"]
[Result "1-0"]
[ECO "A03"]
[WhiteElo "2017"]
[BlackElo "1619"]
[Annotator "NA"]
[PlyCount "51"]
[EventDate "2019.05.25"]
[EventType "tourn"]
[EventCountry "GER"]
[SourceTitle "playchess.com"]
[Source "ChessBase"]
[SourceQuality "1"]
[TimeControl "180+2"]

1. f4 {[%emt 0:00:00]} d5 {[%emt 0:00:03]} 2. Nf3 {[%emt 0:00:01]} c5 {[%emt 0:00:06]} 3. b3 {[%emt 0:00:01]} Nf6 {[%emt 0:00:13]} 4. Bb2 {[%emt 0:00:02]} g6 {[%emt 0:00:17]} 5. e3 {[%emt 0:00:02]} Bg7 {[%emt 0:00:03]} 6. Bb5+ {[%emt 0:00:03]} Bd7 {[%emt 0:00:13]} 7. Qe2 {[%emt 0:00:02]} O-O {[%emt 0:00:15]} 8. a4 {[%emt 0:00:01]} a6 {[%emt 0:00:12]} 9. Bxd7 {[%emt 0:00:02]} Qxd7 {[%emt 0:00:10]} 10. O-O {[%emt 0:00:05]} Nc6 {[%emt 0:00:03]} 11. d3 {[%emt 0:00:07]} Rfd8 {[%emt 0:00:14]} 12. Nbd2 {[%emt 0:00:02]} b5 {[%emt 0:00:07]} 13. Ne5 {[%emt 0:01:06]} Nxe5 {[%emt 0:00:13]} 14. fxe5 {[%emt 0:00:19]} Ng4 {[%emt 0:00:24]} 15. d4 {[%emt 0:00:03]} c4 {[%emt 0:00:06]} 16. h3 {[%emt 0:00:14]} Nh6 {[%emt 0:00:11]} 17. Nf3 {[%emt 0:00:09]} Rac8 {[%emt 0:00:15]} 18. axb5 {[%emt 0:00:12]} axb5 {[%emt 0:00:03]} 19. Ng5 {[%emt 0:00:08]} c3 {[%emt 0:00:13]} 20. Ba3 {[%emt 0:00:03]} Rb8 {[%emt 0:00:07]} 21. Bb4 {[%emt 0:00:02]} Rdc8 {[%emt 0:00:04]} 22. Ra5 {[%emt 0:00:02]} Qc7 {[%emt 0:00:05]} 23. Rxb5 {[%emt 0:00:07]} Rxb5 {[%emt 0:00:04]} 24. Qxb5 {[%emt 0:00:01]} e6 {[%emt 0:00:04]} 25. Bd6 {[%emt 0:00:03]} Qd8 26. Qb7 1-0

[Event "GER-chW Blitz 2019"]
[Site "Magdeburg"]
[Date "2019.05.25"]
[Round "21.2"]
[White "Kushka, Alena"]
[Black "Lubbe, Melanie"]
[Result "0-1"]
[ECO "E77"]
[WhiteElo "2148"]
[BlackElo "2278"]
[Annotator "NA"]
[PlyCount "62"]
[EventDate "2019.05.25"]
[EventType "tourn"]
[EventCountry "GER"]
[SourceTitle "playchess.com"]
[Source "ChessBase"]
[SourceQuality "1"]
[TimeControl "180+2"]

1. d4 {[%emt 0:00:00]} Nf6 {[%emt 0:00:00]} 2. c4 {[%emt 0:00:01]} g6 {[%emt 0:00:00]} 3. Nc3 {[%emt 0:00:01]} Bg7 {[%emt 0:00:00]} 4. e4 {[%emt 0:00:01]} d6 {[%emt 0:00:00]} 5. f4 {[%emt 0:00:02]} O-O {[%emt 0:00:05]} 6. Nf3 {[%emt 0:00:00]} c5 {[%emt 0:00:12]} 7. d5 {[%emt 0:00:01]} Bg4 {[%emt 0:00:09]} 8. Bd3 {[%emt 0:00:15]} e6 {[%emt 0:00:03]} 9. dxe6 {[%emt 0:00:02]} fxe6 {[%emt 0:00:05]} 10. O-O {[%emt 0:00:02]} Nc6 {[%emt 0:00:03]} 11. Qe1 {[%emt 0:00:16]} Bxf3 {[%emt 0:00:12]} 12. Rxf3 {[%emt 0:00:04]} Nd4 {[%emt 0:00:05]} 13. Rh3 {[%emt 0:00:08]} Nh5 {[%emt 0:00:06]} 14. f5 {[%emt 0:00:44]} exf5 {[%emt 0:00:12]} 15. exf5 {[%emt 0:00:06]} Nxf5 {[%emt 0:00:19]} 16. g4 {[%emt 0:00:53]} Nd4 {[%emt 0:00:36]} 17. gxh5 {[%emt 0:00:05]} Nf3+ {[%emt 0:00:03]} 18. Rxf3 {[%emt 0:00:08]} Rxf3 {[%emt 0:00:01]} 19. Qe4 {[%emt 0:00:24]} Bd4+ {[%emt 0:00:13]} 20. Kh1 {[%emt 0:00:10]} Qf8 {[%emt 0:00:09]} 21. Bh6 {[%emt 0:00:06]} Qf6 {[%emt 0:00:32]} 22. hxg6 {[%emt 0:00:02]} hxg6 {[%emt 0:00:08]} 23. Bg5 {[%emt 0:00:03]} Qf7 {[%emt 0:00:03]} 24. Nd5 {[%emt 0:00:02]} Re8 {[%emt 0:00:10]} 25. Ne7+ {[%emt 0:00:01]} Kg7 {[%emt 0:00:02]} 26. Re1 {[%emt 0:00:03]} Rf2 {[%emt 0:00:08]} 27. Qg4 {[%emt 0:00:05]} Qf3+ {[%emt 0:00:04]} 28. Qxf3 {[%emt 0:00:01]} Rxf3 {[%emt 0:00:01]} 29. Bb1 {[%emt 0:00:02]} Ref8 {[%emt 0:00:02]} 30. b3 {[%emt 0:00:02]} Rf1+ {[%emt 0:00:01]} 31. Rxf1 {[%emt 0:00:03]} Rxf1+ {[%emt 0:00:01] Kg1} 0-1

[Event "GER-chW Blitz 2019"]
[Site "Magdeburg"]
[Date "2019.05.25"]
[Round "21.3"]
[White "Schulze, Lara"]
[Black "Fuchs, Judith"]
[Result "0-1"]
[ECO "B12"]
[WhiteElo "2160"]
[BlackElo "2218"]
[Annotator "NA"]
[PlyCount "46"]
[EventDate "2019.05.25"]
[EventType "tourn"]
[EventCountry "GER"]
[SourceTitle "playchess.com"]
[Source "ChessBase"]
[SourceQuality "1"]
[TimeControl "180+2"]

1. e4 {[%emt 0:00:00]} c6 {[%emt 0:00:00]} 2. d4 {[%emt 0:00:00]} d5 {[%emt 0:00:00]} 3. e5 {[%emt 0:00:00]} c5 {[%emt 0:00:00]} 4. dxc5 {[%emt 0:00:01]} e6 {[%emt 0:00:00]} 5. a3 {[%emt 0:00:02]} Bxc5 {[%emt 0:00:01]} 6. b4 {[%emt 0:00:02]} Be7 {[%emt 0:00:01]} 7. Qg4 {[%emt 0:00:10]} g6 {[%emt 0:00:21]} 8. Bd3 {[%emt 0:00:20]} a5 {[%emt 0:00:13]} 9. b5 {[%emt 0:00:04]} Nd7 {[%emt 0:00:10]} 10. Nf3 {[%emt 0:00:07]} Qc7 {[%emt 0:00:04]} 11. Qg3 {[%emt 0:00:17]} b6 {[%emt 0:00:28]} 12. O-O {[%emt 0:00:08]} Bb7 {[%emt 0:00:03]} 13. Nbd2 {[%emt 0:00:09]} Nc5 {[%emt 0:00:17]} 14. Nb3 {[%emt 0:00:20]} Nxb3 {[%emt 0:00:24]} 15. cxb3 {[%emt 0:00:01]} Qc3 {[%emt 0:00:12]} 16. Nd2 {[%emt 0:01:38]} Qxa1 {[%emt 0:00:09]} 17. Qe3 {[%emt 0:00:06]} Bc5 {[%emt 0:00:08]} 18. Qe2 {[%emt 0:00:01]} Qd4 {[%emt 0:00:07]} 19. Kh1 {[%emt 0:00:05]} Qh4 {[%emt 0:00:08]} 20. f4 {[%emt 0:00:03]} Nh6 {[%emt 0:00:05]} 21. g3 {[%emt 0:00:04]} Qh5 {[%emt 0:00:07]} 22. Nf3 {[%emt 0:00:03]} Nf5 {[%emt 0:00:05]} 23. Bd2 {[%emt 0:00:02]} Nxg3+ {[%emt 0:00:03]} 0-1

[Event "GER-chW Blitz 2019"]
[Site "Magdeburg"]
[Date "2019.05.25"]
[Round "21.4"]
[White "Braje, Monika"]
[Black "Kotyk, Valeriya"]
[Result "1/2-1/2"]
[ECO "C02"]
[WhiteElo "1781"]
[BlackElo "1739"]
[Annotator "NA"]
[PlyCount "60"]
[EventDate "2019.05.25"]
[EventType "tourn"]
[EventCountry "GER"]
[SourceTitle "playchess.com"]
[Source "ChessBase"]
[SourceQuality "1"]
[TimeControl "180+2"]

1. e4 {[%emt 0:00:00]} e6 {[%emt 0:00:00]} 2. d4 {[%emt 0:00:01]} d5 {[%emt 0:00:00]} 3. e5 {[%emt 0:00:00]} c5 {[%emt 0:00:00]} 4. c3 {[%emt 0:00:01]} Nc6 {[%emt 0:00:00]} 5. Nf3 {[%emt 0:00:01]} Qb6 {[%emt 0:00:01]} 6. Bd3 {[%emt 0:00:02]} Bd7 {[%emt 0:00:01]} 7. dxc5 {[%emt 0:00:01]} Bxc5 {[%emt 0:00:01]} 8. O-O {[%emt 0:00:01]} a5 {[%emt 0:00:01]} 9. Qe2 {[%emt 0:00:04]} Nge7 {[%emt 0:00:03]} 10. Kh1 {[%emt 0:00:17]} O-O {[%emt 0:00:03]} 11. Bg5 {[%emt 0:00:13]} Ng6 {[%emt 0:00:01]} 12. Na3 {[%emt 0:00:12]} Qc7 {[%emt 0:00:16]} 13. Rfe1 {[%emt 0:00:05]} Bxa3 {[%emt 0:00:09]} 14. bxa3 {[%emt 0:00:01]} Nce7 {[%emt 0:00:12]} 15. Rac1 {[%emt 0:00:03]} Rac8 {[%emt 0:00:07]} 16. c4 {[%emt 0:00:10]} dxc4 {[%emt 0:00:01]} 17. Rxc4 {[%emt 0:00:01]} Qb8 {[%emt 0:00:05]} 18. Rd4 {[%emt 0:00:03]} Bc6 {[%emt 0:00:02]} 19. Bxe7 {[%emt 0:00:11]} Nxe7 {[%emt 0:00:02]} 20. Ng5 {[%emt 0:00:04]} h6 {[%emt 0:00:11]} 21. Rh4 {[%emt 0:00:10]} Nf5 {[%emt 0:00:07]} 22. Bxf5 {[%emt 0:00:04]} exf5 {[%emt 0:00:01]} 23. Rh3 {[%emt 0:00:08]} Qc7 {[%emt 0:00:13]} 24. e6 {[%emt 0:00:04]} hxg5 {[%emt 0:00:44]} 25. Qh5 {[%emt 0:00:02]} fxe6 {[%emt 0:00:03]} 26. Rxe6 {[%emt 0:00:14]} Rce8 {[%emt 0:00:19]} 27. Qh7+ {[%emt 0:00:11]} Kf7 {[%emt 0:00:01]} 28. Qxf5+ {[%emt 0:00:02]} Kg8 {[%emt 0:00:02]} 29. Qh7+ {[%emt 0:00:28]} Kf7 {[%emt 0:00:03]} 30. Qg6+ {[%emt 0:00:15]} Kg8 1/2-1/2

[Event "GER-chW Blitz 2019"]
[Site "Magdeburg"]
[Date "2019.05.25"]
[Round "21.5"]
[White "Mader, Lena"]
[Black "Silz, Elisa"]
[Result "0-1"]
[ECO "A16"]
[WhiteElo "1839"]
[BlackElo "1977"]
[Annotator "NA"]
[PlyCount "73"]
[EventDate "2019.05.25"]
[EventType "tourn"]
[EventCountry "GER"]
[SourceTitle "playchess.com"]
[Source "ChessBase"]
[SourceQuality "1"]
[TimeControl "180+2"]

1. c4 {[%emt 0:00:00]} Nf6 {[%emt 0:00:00]} 2. Nc3 {[%emt 0:00:01]} g6 {[%emt 0:00:00]} 3. g3 {[%emt 0:00:00]} Bg7 {[%emt 0:00:00]} 4. Bg2 {[%emt 0:00:01]} O-O {[%emt 0:00:01]} 5. Nf3 d6 6. O-O {[%emt 0:00:03]} e5 {[%emt 0:00:01]} 7. d3 {[%emt 0:00:01]} c6 {[%emt 0:00:01]} 8. Rb1 {[%emt 0:00:02]} Nbd7 {[%emt 0:00:02]} 9. b4 {[%emt 0:00:06]} Ne8 {[%emt 0:00:08]} 10. e3 {[%emt 0:00:11]} f5 {[%emt 0:00:02]} 11. b5 {[%emt 0:00:07]} Qc7 {[%emt 0:00:05]} 12. Qc2 {[%emt 0:00:14]} Nef6 {[%emt 0:00:05]} 13. a4 {[%emt 0:00:05]} Re8 {[%emt 0:00:21]} 14. Nd2 {[%emt 0:00:26]} f4 {[%emt 0:00:13]} 15. exf4 {[%emt 0:00:05]} exf4 {[%emt 0:00:01]} 16. Nf3 {[%emt 0:00:02]} fxg3 {[%emt 0:00:07]} 17. hxg3 {[%emt 0:00:04]} Ng4 {[%emt 0:00:16]} 18. Ne4 {[%emt 0:00:35]} Nde5 {[%emt 0:00:11]} 19. Nxe5 {[%emt 0:00:18]} Nxe5 {[%emt 0:00:07]} 20. Bf4 {[%emt 0:00:06]} Bf5 {[%emt 0:00:13]} 21. Qb3 {[%emt 0:00:16]} Kh8 {[%emt 0:00:11]} 22. d4 {[%emt 0:00:13]} Bxe4 {[%emt 0:00:07]} 23. Bxe4 {[%emt 0:00:14]} Nxc4 {[%emt 0:00:08]} 24. Bxc6 {[%emt 0:00:20]} Na5 {[%emt 0:00:11]} 25. Qb4 {[%emt 0:00:15]} bxc6 {[%emt 0:00:03]} 26. Bxd6 {[%emt 0:00:02]} Qb6 {[%emt 0:00:03]} 27. Bc5 {[%emt 0:00:01]} Qd8 {[%emt 0:00:09]} 28. Rbd1 {[%emt 0:00:03]} cxb5 {[%emt 0:00:07]} 29. axb5 Nb7 {[%emt 0:00:09]} 30. Ra1 {[%emt 0:00:03]} Qf6 {[%emt 0:00:13]} 31. Rxa7 Rxa7 32. Bxa7 {[%emt 0:00:02]} Nd6 {[%emt 0:00:05]} 33. Bc5 {[%emt 0:00:02]} Ne4 {[%emt 0:00:01]} 34. d5 {[%emt 0:00:03]} Qf3 {[%emt 0:00:09]} 35. Bd6 {[%emt 0:00:03]} h5 {[%emt 0:00:13]} 36. Qa4 Nxd6 37. b6 {[%emt 0:00:00]} 0-1

[Event "GER-chW Blitz 2019"]
[Site "Magdeburg"]
[Date "2019.05.25"]
[Round "21.6"]
[White "Zimmer, Elke"]
[Black "Rath, Alina"]
[Result "0-1"]
[ECO "B26"]
[WhiteElo "1926"]
[BlackElo "2042"]
[Annotator "NA"]
[PlyCount "49"]
[EventDate "2019.05.25"]
[EventType "tourn"]
[EventCountry "GER"]
[SourceTitle "playchess.com"]
[Source "ChessBase"]
[SourceQuality "1"]
[TimeControl "180+2"]

1. e4 {[%emt 0:00:00]} c5 {[%emt 0:00:00]} 2. Nc3 {[%emt 0:00:00]} Nc6 {[%emt 0:00:00]} 3. g3 {[%emt 0:00:01]} g6 {[%emt 0:00:01]} 4. Bg2 {[%emt 0:00:01]} Bg7 {[%emt 0:00:01]} 5. d3 {[%emt 0:00:01]} d6 {[%emt 0:00:02]} 6. Be3 {[%emt 0:00:02]} e5 {[%emt 0:00:02]} 7. Nge2 {[%emt 0:00:06]} Nge7 {[%emt 0:00:02]} 8. O-O {[%emt 0:00:04]} O-O {[%emt 0:00:02]} 9. Qd2 {[%emt 0:00:10]} f5 {[%emt 0:00:02]} 10. Bh6 {[%emt 0:00:16]} Be6 {[%emt 0:00:06]} 11. Bxg7 {[%emt 0:00:03]} Kxg7 {[%emt 0:00:01]} 12. exf5 {[%emt 0:00:04]} Bxf5 {[%emt 0:00:06]} 13. Nd5 {[%emt 0:00:10]} Qd7 {[%emt 0:00:05]} 14. Nec3 {[%emt 0:00:10]} Bh3 {[%emt 0:00:30]} 15. Qg5 {[%emt 0:00:10]} Bxg2 {[%emt 0:00:20]} 16. Kxg2 {[%emt 0:00:01]} Rf5 {[%emt 0:00:05]} 17. Qh4 {[%emt 0:00:21]} Nxd5 {[%emt 0:00:27]} 18. Nxd5 {[%emt 0:00:02]} Nd4 {[%emt 0:00:03]} 19. f3 {[%emt 0:00:57]} Nxc2 {[%emt 0:00:41]} 20. Rac1 {[%emt 0:00:04]} Nd4 {[%emt 0:00:02]} 21. g4 {[%emt 0:00:12]} Rf7 {[%emt 0:00:04]} 22. Rf2 {[%emt 0:00:08]} Raf8 {[%emt 0:00:07]} 23. Rcf1 {[%emt 0:00:11]} Ne6 {[%emt 0:00:23]} 24. g5 Nf4+ 25. Nxf4 0-1

[Event "GER-chW Blitz 2019"]
[Site "Magdeburg"]
[Date "2019.05.25"]
[Round "21.7"]
[White "Kopylov, Luba"]
[Black "Birkholz, Olga"]
[Result "1-0"]
[ECO "E80"]
[WhiteElo "2078"]
[BlackElo "2031"]
[Annotator "NA"]
[PlyCount "51"]
[EventDate "2019.05.25"]
[EventType "tourn"]
[EventCountry "GER"]
[SourceTitle "playchess.com"]
[Source "ChessBase"]
[SourceQuality "1"]
[TimeControl "180+2"]

1. d4 {[%emt 0:00:00]} Nf6 {[%emt 0:00:00]} 2. c4 {[%emt 0:00:00]} g6 {[%emt 0:00:01]} 3. Nc3 {[%emt 0:00:01]} Bg7 {[%emt 0:00:02]} 4. e4 {[%emt 0:00:02]} d6 {[%emt 0:00:01]} 5. f3 {[%emt 0:00:01]} Nbd7 {[%emt 0:00:04]} 6. Be3 {[%emt 0:00:01]} c5 {[%emt 0:00:02]} 7. Nge2 {[%emt 0:00:04]} O-O {[%emt 0:00:02]} 8. Qd2 {[%emt 0:00:01]} cxd4 {[%emt 0:00:06]} 9. Nxd4 {[%emt 0:00:02]} Ne5 {[%emt 0:00:09]} 10. Be2 {[%emt 0:00:01]} Be6 {[%emt 0:00:08]} 11. Nxe6 {[%emt 0:00:09]} fxe6 {[%emt 0:00:01]} 12. O-O-O {[%emt 0:00:08]} Rc8 {[%emt 0:00:04]} 13. b3 {[%emt 0:00:23]} Qa5 {[%emt 0:00:07]} 14. Kb1 {[%emt 0:00:05]} Nfd7 {[%emt 0:00:18]} 15. Bd4 {[%emt 0:00:13]} a6 {[%emt 0:00:15]} 16. f4 {[%emt 0:00:06]} Nc6 {[%emt 0:00:05]} 17. Bxg7 {[%emt 0:00:05]} Kxg7 {[%emt 0:00:01]} 18. h4 {[%emt 0:00:07]} b5 {[%emt 0:00:16]} 19. cxb5 {[%emt 0:00:11]} axb5 {[%emt 0:00:14]} 20. h5 {[%emt 0:00:26]} b4 {[%emt 0:00:05]} 21. Na4 {[%emt 0:00:04]} Nf6 {[%emt 0:00:06]} 22. Bf3 {[%emt 0:00:31]} e5 {[%emt 0:00:08]} 23. f5 {[%emt 0:00:03]} Nd4 {[%emt 0:00:36]} 24. hxg6 {[%emt 0:00:03]} hxg6 {[%emt 0:00:09]} 25. Qh6+ {[%emt 0:00:01]} Kg8 {[%emt 0:00:09]} 26. Qxg6# {[%emt 0:00:02]} 1-0